bitfinex/quotes_SOLUSD_20241016
["timestamp","ask_amount","ask_price","bid_price","bid_amount"]
[1729074324092,0.6285554,156.13,156.09,23.776884]
[1729074331926,0.6285554,156.13,156.06,20.0]
[1729074332108,0.6285554,156.13,156.07,23.776884]
[1729074332308,0.6285554,156.13,156.08,20.0]
[1729074332309,7.0337554,156.13,156.08,20.0]
[1729074335322,0.6285554,156.13,156.09,23.776884]
[1729074337732,0.6285554,156.13,156.04,43.776884]
[1729074337903,7.0854554,156.13,156.01,27.88281354]
[1729074338411,7.0854554,156.13,156.01,15.2342]
[1729074338412,6.4069,156.08,156.01,15.2342]
[1729074338615,6.4078,156.06,155.99,12.64861354]
[1729074339021,15.6997,156.08,155.97,29.06471354]
[1729074339216,6.4083,156.05,155.98,3.69446194]
[1729074339413,6.4086,156.04,155.97,16.4161]
[1729074339613,6.4086,156.04,155.95,13.61096363]
[1729074339807,6.4086,156.04,155.96,3.69588817]
[1729074340028,6.4095,156.02,155.96,3.69588817]
[1729074340232,6.4095,156.02,155.94,3.69451301]
[1729074340537,6.4099,156.01,155.94,3.69451301]
[1729074340831,6.4095,156.02,155.94,3.69579701]
[1729074341517,6.4095,156.02,155.95,23.776884]
[1729074342037,6.4095,156.02,155.94,23.776884]
[1729074342247,6.4095,156.02,155.95,20.0]
[1729074342438,6.4095,156.02,155.96,23.776884]
[1729074343336,6.4095,156.02,155.94,20.0]
[1729074344531,6.4095,156.02,155.95,23.776884]
[1729074348736,6.4105,156.0,155.93,23.776884]
[1729074349331,6.4109,155.99,155.93,23.776884]
[1729074349532,6.4114,155.98,155.89,21.6292]
[1729074349738,6.4114,155.98,155.9,3.66425111]
[1729074349933,6.4115,155.97,155.9,3.66425111]
[1729074350352,6.4121,155.96,155.9,3.66425111]
[1729074350644,6.4121,155.96,155.88,3.66425111]
[1729074350855,6.4121,155.96,155.87,12.64861354]
[1729074350856,6.4121,155.96,155.89,3.66425111]
[1729074351034,6.4121,155.96,155.88,3.66425111]
[1729074351345,6.4127,155.94,155.88,3.66425111]
[1729074351547,6.4123,155.95,155.87,3.66425111]
[1729074352521,6.4123,155.95,155.88,23.776884]
[1729074352729,6.4123,155.95,155.89,23.776884]
[1729074353345,6.4119,155.96,155.89,23.776884]
[1729074358753,6.4114,155.97,155.91,23.776884]
[1729074359849,6.1973,156.0,155.91,23.776884]
[1729074360050,6.4109,155.99,155.93,23.776884]
[1729074360937,6.4104,156.0,155.93,23.776884]
[1729074361648,6.4104,156.0,155.95,23.776884]
[1729074362057,15.3967,156.01,155.95,23.776884]
[1729074362262,21.8066,156.01,155.95,23.776884]
[1729074362637,6.4103,156.0,155.95,23.776884]
[1729074364427,6.4115,155.97,155.86,22.56594597]
[1729074364626,15.3967,156.01,155.86,22.56594597]
[1729074364627,70.0,156.0,155.87,3.66434605]
[1729074364852,70.0,156.0,155.87,16.31295959]
[1729074365041,70.0,156.0,155.87,12.64861354]
[1729074365730,70.0,156.0,155.88,20.0]
[1729074366356,6.4123,155.95,155.9,20.0]
[1729074367837,15.3967,156.01,155.91,23.776884]
[1729074368147,6.4113,155.98,155.91,23.776884]
[1729074368654,31.4218,156.01,155.91,23.776884]
[1729074369158,6.4115,155.97,155.91,23.776884]
[1729074369350,6.4102,156.0,155.91,36.42549754]
[1729074369533,6.4102,156.0,155.9,20.0]
[1729074369534,21.8068,156.01,155.93,36.42549754]
[1729074369850,15.3967,156.01,155.93,23.776884]
[1729074370054,6.4111,155.98,155.93,23.776884]
[1729074370628,6.4103,156.0,155.93,23.776884]
[1729074370834,21.8065,156.01,155.93,23.776884]
[1729074372862,6.4102,156.0,155.93,23.776884]
[1729074373655,15.3967,156.01,155.93,23.776884]
[1729074373854,6.4093,156.03,155.95,23.776884]
[1729074374155,6.4095,156.02,155.95,23.776884]
[1729074374734,6.0741,156.04,155.95,23.776884]
[1729074374966,6.4101,156.01,155.95,23.776884]
[1729074375260,6.4102,156.0,155.95,23.776884]
[1729074376739,6.4098,156.01,155.95,23.776884]
[1729074376934,6.4095,156.02,155.95,23.776884]
[1729074377246,6.4092,156.03,155.95,23.776884]
[1729074377443,6.4095,156.02,155.95,23.776884]
[1729074378151,6.0741,156.04,155.95,23.776884]
[1729074378352,6.4099,156.01,155.95,23.776884]
[1729074378972,6.0741,156.04,155.95,23.776884]
[1729074379151,6.4094,156.02,155.95,23.776884]
[1729074379362,6.0741,156.04,155.97,23.776884]
[1729074379659,6.4095,156.02,155.97,23.776884]
[1729074379861,6.0741,156.04,155.97,23.776884]
[1729074380050,15.7133,156.05,155.97,23.776884]
[1729074380253,6.4086,156.04,155.97,23.776884]
[1729074381168,15.7133,156.05,155.98,20.0]
[1729074381370,12.9548,156.08,155.99,23.776884]
[1729074381571,12.9548,156.08,156.01,23.776884]
[1729074381572,6.4074,156.07,156.01,23.776884]
[1729074381751,12.9545,156.08,156.01,23.776884]
[1729074382269,23.059,156.1,156.03,23.776884]
[1729074382564,16.6526,156.1,156.03,23.776884]
[1729074382951,16.6526,156.1,156.04,20.0]
[1729074383154,16.6526,156.1,156.05,23.776884]
[1729074384152,12.5134,156.12,156.05,23.776884]
[1729074385063,6.4057,156.11,156.05,23.776884]
[1729074389071,0.6285554,156.13,156.05,23.776884]
[1729074389961,0.6285554,156.13,156.07,23.776884]
[1729074390968,6.406,156.11,156.07,23.776884]
[1729074391890,6.406,156.11,156.02,15.286]
[1729074392172,0.6285554,156.13,156.03,43.776884]
[1729074392173,6.4063,156.1,156.03,43.776884]
[1729074393566,0.6285554,156.13,156.03,43.776884]
[1729074393567,6.4058,156.11,156.03,43.776884]
[1729074394383,0.6285554,156.13,156.03,43.776884]
[1729074394567,6.4054,156.12,156.03,43.776884]
[1729074394759,0.6285554,156.13,156.03,43.776884]
[1729074394760,0.6285554,156.13,156.06,43.776884]
[1729074395662,0.6285554,156.13,156.1,20.0]
[1729074395862,0.6285554,156.13,156.11,23.776884]
[1729074397085,0.6285554,156.13,156.06,20.0]
[1729074397381,0.6285554,156.13,156.08,20.0]
[1729074397565,0.6285554,156.13,156.09,23.776884]
[1729074399694,0.6285554,156.13,156.05,16.5317]
[1729074399988,0.6285554,156.13,156.07,23.776884]
[1729074400686,7.0337554,156.13,156.07,23.776884]
[1729074403187,0.6285554,156.13,156.07,23.776884]
[1729074407083,7.0334554,156.13,156.07,23.776884]
[1729074407479,0.6285554,156.13,156.07,23.776884]
[1729074408195,7.0336554,156.13,156.07,23.776884]
[1729074411802,0.6285554,156.13,156.07,23.776884]
[1729074415577,0.6285554,156.13,156.09,23.776884]
[1729074421301,7.0336554,156.13,156.09,23.776884]
[1729074422519,0.6285554,156.13,156.09,23.776884]
[1729074423203,0.6285554,156.13,156.09,36.40107527]
[1729074424486,0.6285554,156.13,156.1,20.0]
[1729074424683,0.6285554,156.13,156.11,23.776884]
[1729074424986,0.6285554,156.13,156.1,20.0]
[1729074425188,0.6285554,156.13,156.11,23.776884]
[1729074425602,0.6285554,156.13,156.1,20.0]
[1729074425794,0.6285554,156.13,156.11,23.776884]
[1729074432321,0.6285554,156.13,156.12,20.0]
[1729074432823,0.6285554,156.13,156.12,43.776884]
[1729074441421,0.6285554,156.13,156.08,12.62419127]
[1729074441600,0.6285554,156.13,156.09,3.65072498]
[1729074442713,0.6285554,156.13,156.1,23.776884]
[1729074442920,0.6285554,156.13,156.09,27.42755028]
[1729074443104,0.6285554,156.13,156.09,23.776884]
[1729074445728,0.6285554,156.13,156.12,20.0]
[1729074446401,0.6285554,156.13,156.12,43.776884]
[1729074447429,0.6285554,156.13,156.05,16.5317]
[1729074447725,0.6285554,156.13,156.07,23.776884]
[1729074447902,0.6285554,156.13,156.09,23.776884]
[1729074448516,0.6285554,156.13,156.06,12.62419127]
[1729074449120,7.0337554,156.13,156.06,12.62419127]
[1729074449707,0.6285554,156.13,156.08,23.776884]
[1729074454301,0.6285554,156.13,156.1,23.776884]
[1729074454603,0.6285554,156.13,156.12,23.776884]
[1729074461431,0.6285554,156.13,156.11,20.0]
[1729074462832,0.6285554,156.13,156.12,23.776884]
[1729074466644,13.6535554,156.13,156.05,3.65248655]
[1729074466827,13.6535554,156.13,156.04,3.65248655]
[1729074467026,13.6535554,156.13,156.05,3.65248655]
[1729074467428,13.6535554,156.13,156.06,23.776884]
[1729074467740,13.6535554,156.13,156.06,20.0]
[1729074468044,13.6535554,156.13,156.07,23.776884]
[1729074468408,7.2485554,156.13,156.07,23.776884]
[1729074468613,6.4058,156.11,156.04,23.776884]
[1729074468838,6.4058,156.11,156.06,23.776884]
[1729074469060,7.2485554,156.13,156.06,23.776884]
[1729074469233,13.6537554,156.13,156.06,23.776884]
[1729074470452,6.4054,156.12,156.06,23.776884]
[1729074470641,7.2485554,156.13,156.06,23.776884]
[1729074470815,6.4059,156.11,156.06,23.776884]
[1729074471241,6.4059,156.11,156.04,20.0]
[1729074471755,6.4059,156.11,156.05,23.776884]
[1729074472116,6.407,156.08,156.02,20.0]
[1729074472421,6.407,156.08,156.01,28.72269127]
[1729074472422,6.407,156.08,156.01,12.62419127]
[1729074472925,6.407,156.08,155.97,15.124]
[1729074472926,6.4075,156.07,155.99,12.62419127]
[1729074474255,6.4075,156.07,156.0,43.776884]
[1729074475039,6.4078,156.06,156.0,43.776884]
[1729074476242,6.6346,156.07,156.0,23.776884]
[1729074476418,6.6346,156.07,155.98,12.62419127]
[1729074476419,6.4085,156.05,155.97,23.776884]
[1729074476621,6.4087,156.04,155.97,23.776884]
[1729074477235,6.4092,156.03,155.97,23.776884]
[1729074477727,15.5337,156.02,155.97,23.776884]
[1729074478042,21.9432,156.02,155.93,27.87309127]
[1729074479532,21.9432,156.02,155.95,20.0]
[1729074479727,21.9432,156.02,155.96,23.776884]
[1729074480139,15.5337,156.02,155.96,23.776884]
[1729074480451,92.6536,156.07,155.98,23.776884]
[1729074480452,6.4084,156.05,155.98,23.776884]
[1729074481843,15.6137,156.06,156.0,23.776884]
[1729074482240,6.4073,156.08,156.01,32.62419127]
[1729074482744,6.4073,156.08,156.02,23.776884]
[1729074482944,16.3498,156.1,156.02,23.776884]
[1729074483258,16.3498,156.1,155.93,15.3489]
[1729074483259,86.3498,156.1,155.93,15.3489]
[1729074483547,6.4082,156.05,155.98,20.0]
[1729074483749,6.4082,156.05,155.99,36.40107527]
[1729074487054,16.3498,156.1,156.01,12.62419127]
[1729074487365,6.4073,156.07,156.01,12.62419127]
[1729074488139,6.407,156.08,156.01,12.62419127]
[1729074489076,16.3498,156.1,156.01,12.62419127]
[1729074489258,6.4066,156.09,156.02,23.776884]
[1729074491645,6.4066,156.09,156.03,12.62419127]
[1729074492768,16.3498,156.1,156.03,12.62419127]
[1729074493064,6.4077,156.07,155.99,12.62419127]
[1729074494263,6.4077,156.07,156.0,43.776884]
[1729074497062,6.4077,156.07,156.01,12.62419127]
[1729074499164,6.4077,156.07,156.0,43.776884]
[1729074503551,6.4081,156.06,156.0,23.776884]
[1729074504968,70.0,156.08,155.98,20.0]
[1729074505182,6.4083,156.05,155.99,23.776884]
[1729074507663,6.4083,156.05,155.97,12.62419127]
[1729074508164,6.4087,156.04,155.98,43.776884]
[1729074510673,70.0,156.06,155.97,12.62419127]
[1729074510852,6.4086,156.04,155.98,20.0]
[1729074512581,6.4092,156.03,155.96,20.0]
[1729074512792,6.4092,156.03,155.96,32.62419127]
[1729074513154,15.6809,156.04,155.96,32.62419127]
[1729074513454,6.4091,156.03,155.96,32.62419127]
[1729074516859,22.0896,156.04,155.97,36.40107527]
[1729074517059,15.6809,156.04,155.98,12.62419127]
[1729074522788,12.955,156.05,155.98,12.62419127]
[1729074523390,6.4076,156.07,156.0,12.62419127]
[1729074523596,22.6476,156.08,156.01,23.776884]
[1729074524107,85.4916,156.04,155.89,21.6855]
[1729074524262,6.411,155.99,155.9,16.27979148]
[1729074524460,70.0,156.02,155.91,3.65560021]
[1729074524461,6.4113,155.98,155.91,3.65560021]
[1729074524691,6.4117,155.97,155.9,3.65560021]
[1729074525286,6.4111,155.98,155.9,16.27979148]
[1729074525488,6.4111,155.98,155.91,20.0]
[1729074525867,70.0,156.0,155.9,12.62419127]
[1729074526194,6.4115,155.97,155.89,21.6855]
[1729074526361,6.4115,155.97,155.89,15.4968]
[1729074527168,6.4115,155.97,155.9,23.776884]
[1729074529502,6.4115,155.97,155.9,23.776884]
[1729074530071,6.412,155.96,155.9,20.0]
[1729074530280,6.412,155.96,155.89,15.4968]
[1729074531204,6.412,155.96,155.89,20.0]
[1729074531891,6.412,155.96,155.87,43.776884]
[1729074533903,15.4916,155.98,155.9,12.62419127]
[1729074534130,15.4916,155.98,155.92,23.776884]
[1729074535202,12.6634,156.0,155.92,23.776884]
[1729074535609,6.4109,155.99,155.92,23.776884]
[1729074538413,16.4194,155.97,155.85,22.7796]
[1729074539194,6.4126,155.95,155.85,22.7796]
[1729074539496,22.831,155.97,155.89,12.62419127]
[1729074539712,22.831,155.97,155.91,20.0]
[1729074543510,16.4194,155.97,155.92,23.776884]
[1729074543696,6.4106,155.99,155.92,23.776884]
[1729074544322,6.4117,155.97,155.87,23.776884]
[1729074544496,76.2531,156.0,155.88,32.62419127]
[1729074544497,6.4119,155.96,155.88,32.62419127]
[1729074544822,6.4116,155.97,155.9,20.0]
[1729074545215,6.4116,155.97,155.89,20.0]
[1729074545520,6.4116,155.97,155.9,23.776884]
[1729074545699,6.4116,155.97,155.91,20.0]
[1729074547418,70.0,155.98,155.88,12.62419127]
[1729074547620,6.4123,155.95,155.89,23.776884]
[1729074547923,6.4127,155.94,155.86,12.62419127]
[1729074548105,6.4127,155.94,155.86,23.776884]
[1729074549403,6.4127,155.94,155.88,23.776884]
[1729074554632,6.4131,155.93,155.86,23.776884]
[1729074554806,6.4144,155.9,155.82,20.0]
[1729074555130,6.414,155.91,155.82,20.0]
[1729074555533,6.4144,155.9,155.81,12.62419127]
[1729074556311,6.4134,155.93,155.83,12.62419127]
[1729074556529,6.4136,155.92,155.83,12.62419127]
[1729074557227,6.4136,155.92,155.84,23.776884]
[1729074557610,70.0,155.93,155.8,17.31201414]
[1729074557820,70.0,155.93,155.81,36.27165136]
[1729074557821,6.4149,155.89,155.81,36.27165136]
[1729074558005,6.4149,155.89,155.82,3.64746009]
[1729074558618,6.4149,155.89,155.81,32.62419127]
[1729074559307,6.4149,155.89,155.82,3.64782276]
[1729074559513,6.4149,155.89,155.82,23.776884]
[1729074560636,6.4153,155.88,155.81,32.62419127]
[1729074561434,6.4153,155.88,155.81,20.0]
[1729074562234,6.4153,155.88,155.82,23.776884]
[1729074562936,6.415,155.89,155.82,23.776884]
[1729074565832,6.4153,155.88,155.81,23.776884]
[1729074567024,6.4161,155.86,155.75,22.1781]
[1729074567238,6.0055,155.89,155.79,20.0]
[1729074567542,6.4152,155.88,155.8,16.27489154]
[1729074567736,6.4152,155.88,155.8,12.62419127]
[1729074568319,6.4152,155.88,155.81,23.776884]
[1729074569415,6.0055,155.89,155.81,23.776884]
[1729074569724,6.4152,155.88,155.81,23.776884]
[1729074574343,6.0055,155.89,155.81,23.776884]
[1729074574543,6.0055,155.89,155.83,23.776884]
[1729074577135,15.9368,155.9,155.83,23.776884]
[1729074578256,6.6901303,155.92,155.85,23.776884]
[1729074578433,30.0,155.86,155.85,23.776884]
[1729074579355,30.0,155.86,155.81,15.2199]
[1729074579540,30.0,155.86,155.84,23.776884]
[1729074587158,30.0,155.86,155.85,3.65645814]
[1729074587456,30.0,155.86,155.85,40.05824058]
[1729074588940,30.0,155.86,155.85,60.05824058]
[1729074589138,15.4908,155.94,155.86,43.776884]
[1729074589440,15.4908,155.94,155.88,23.776884]
[1729074589760,30.0,155.89,155.88,23.776884]
[1729074589956,30.0,155.89,155.88,27.43403171]
[1729074591465,30.0,155.89,155.88,27.43443568]
[1729074592858,15.4908,155.94,155.88,27.43443568]
[1729074593040,15.4908,155.94,155.88,23.776884]
[1729074596159,30.0,155.89,155.88,23.776884]
[1729074596364,30.0,155.89,155.88,27.43787631]
[1729074598764,30.0,155.89,155.86,20.0]
[1729074598965,30.0,155.88,155.87,47.43791297]
[1729074599265,30.0,155.88,155.87,47.43791259]
[1729074599769,30.0,155.88,155.87,60.06210386]
[1729074602752,30.0,155.88,155.87,47.43791259]
[1729074602946,30.0,155.88,155.87,36.28521986]
[1729074603650,30.0,155.88,155.87,3.66102859]
[1729074604181,30.0,155.88,155.82,16.28521986]
[1729074604374,30.0,155.88,155.83,3.66102859]
[1729074605267,30.0,155.88,155.81,3.66102859]
[1729074605448,30.0,155.88,155.82,16.28521986]
[1729074605654,30.0,155.88,155.83,23.66102859]
[1729074605969,30.0,155.88,155.84,3.66102859]
[1729074606160,30.0,155.88,155.84,27.43960959]
[1729074606354,30.0,155.88,155.84,23.776884]
[1729074606557,30.0,155.88,155.84,36.40107527]
[1729074607562,30.0,155.88,155.86,23.776884]
[1729074607764,30.0,155.88,155.85,20.0]
[1729074607956,30.0,155.88,155.86,23.776884]
[1729074613367,30.0,155.88,155.86,36.40107527]
[1729074613752,30.0,155.88,155.87,3.66433902]
[1729074614185,30.0,155.88,155.87,47.44122302]
[1729074618374,30.0,155.88,155.87,47.44035477]
[1729074623186,29.5185,155.88,155.87,47.44035477]
[1729074623387,15.1955,155.96,155.88,23.776884]
[1729074623680,15.1955,155.96,155.92,12.62419127]
[1729074624375,15.1955,155.96,155.93,23.776884]
[1729074625463,30.0,155.94,155.93,23.776884]
[1729074626084,30.0,155.94,155.9,12.62419127]
[1729074626281,30.0,155.94,155.91,43.776884]
[1729074628391,30.0,155.94,155.83,6.83341492]
[1729074628576,6.5517,155.93,155.84,3.65956392]
[1729074628884,30.0,155.91,155.85,3.65956392]
[1729074629193,30.0,155.91,155.83,3.65956392]
[1729074629400,16.6488,155.9,155.84,3.65956392]
[1729074629564,16.6488,155.9,155.84,3.66333562]
[1729074629761,30.0,155.89,155.84,3.66333562]
[1729074629974,30.0,155.89,155.81,3.66333562]
[1729074630266,30.0,155.89,155.82,3.66333562]
[1729074630471,30.0,155.89,155.83,3.66333562]
[1729074630682,30.0,155.89,155.8,12.62419127]
[1729074630683,30.0,155.89,155.84,3.66333562]
[1729074630867,30.0,155.89,155.82,23.776884]
[1729074631073,30.0,155.89,155.84,23.776884]
[1729074631374,30.0,155.89,155.83,23.776884]
[1729074631564,30.0,155.89,155.84,23.66384094]
[1729074631766,30.0,155.89,155.85,23.776884]
[1729074641596,30.0,155.89,155.83,23.776884]
[1729074642979,30.0,155.89,155.79,20.0]
[1729074643189,36.4147,155.89,155.8,3.65867371]
[1729074643376,6.0224,155.88,155.8,3.65867371]
[1729074643580,30.0,155.86,155.8,3.65867371]
[1729074644082,36.4163,155.86,155.78,3.65867371]
[1729074644288,36.4163,155.86,155.76,14.31213527]
[1729074644594,30.0,155.86,155.76,14.31213527]
[1729074645105,30.0,155.86,155.77,3.65925478]
[1729074645273,30.0,155.86,155.77,23.776884]
[1729074645696,30.0,155.86,155.78,12.62419127]
[1729074646293,30.0,155.86,155.79,23.776884]
[1729074647180,36.416,155.86,155.79,23.776884]
[1729074647379,30.0,155.86,155.8,23.776884]
[1729074648698,30.0,155.86,155.76,21.687944]
[1729074648880,16.3023,155.85,155.78,12.62419127]
[1729074649208,30.0,155.83,155.78,12.62419127]
[1729074649995,30.0,155.83,155.78,20.0]
[1729074650172,30.0,155.83,155.79,36.40107527]
[1729074650379,30.0,155.83,155.79,12.62419127]
[1729074650579,30.0,155.83,155.8,23.776884]
[1729074651000,30.0,155.83,155.82,23.776884]
[1729074651302,30.0,155.83,155.82,43.776884]
[1729074651600,6.3802,155.92,155.83,20.0]
[1729074651808,6.3802,155.92,155.84,36.40107527]
[1729074652101,6.3802,155.92,155.85,23.776884]
[1729074652597,30.0,155.86,155.85,23.776884]
[1729074652792,30.0,155.86,155.85,43.776884]
[1729074653191,16.3023,155.93,155.87,23.776884]
[1729074653384,16.3023,155.93,155.87,36.40107527]
[1729074653696,30.0,155.88,155.87,56.40107527]
[1729074654406,16.3023,155.93,155.87,56.40107527]
[1729074655700,30.0,155.88,155.87,43.776884]
[1729074659509,30.0,155.88,155.85,12.62419127]
[1729074659695,30.0,155.88,155.86,23.776884]
[1729074660601,30.0,155.88,155.83,12.62419127]
[1729074660794,30.0,155.88,155.85,23.776884]
[1729074660987,30.0,155.87,155.82,20.0]
[1729074661189,30.0,155.87,155.83,23.776884]
[1729074661606,30.0,155.87,155.82,20.0]
[1729074662904,30.0,155.87,155.83,23.776884]
[1729074668505,30.0,155.87,155.85,12.62419127]
[1729074668723,30.0,155.87,155.82,12.62419127]
[1729074669007,30.0,155.87,155.83,20.0]
[1729074669241,30.0,155.87,155.84,12.62419127]
[1729074669392,30.0,155.87,155.86,12.62419127]
[1729074669593,30.0,155.87,155.86,32.62419127]
[1729074669800,30.0,155.87,155.86,56.40107527]
[1729074670309,30.0,155.87,155.86,60.05219355]
[1729074670491,6.5756,155.95,155.87,43.776884]
[1729074670699,6.5756,155.95,155.9,12.62419127]
[1729074670898,30.0,155.91,155.88,12.62419127]
[1729074671092,30.0,155.91,155.89,23.776884]
[1729074672092,30.0,155.91,155.83,22.0544]
[1729074672307,30.0,155.91,155.84,32.62419127]
[1729074672511,30.0,155.91,155.85,3.65293165]
[1729074673492,30.0,155.91,155.86,23.776884]
[1729074673712,30.0,155.91,155.85,23.776884]
[1729074673921,30.0,155.91,155.85,20.0]
[1729074674226,30.0,155.91,155.86,23.776884]
[1729074674995,12.9879,155.95,155.86,23.776884]
[1729074676304,12.9879,155.95,155.87,20.0]
[1729074676614,6.5756,155.95,155.88,23.776884]
[1729074677902,30.0,155.9,155.88,23.776884]
[1729074680804,30.0,155.9,155.86,20.0]
[1729074681014,30.0,155.9,155.87,23.776884]
[1729074681211,30.0,155.9,155.88,20.0]
[1729074682520,30.0,155.9,155.84,20.0]
[1729074682706,30.0,155.9,155.83,15.6557]
[1729074682904,30.0,155.9,155.84,3.65250099]
[1729074684019,30.0,155.9,155.87,19.78161412]
[1729074684242,30.0,155.9,155.89,63.55849812]
[1729074685534,16.0129,155.97,155.9,43.776884]
[1729074687231,6.4875,155.99,155.92,43.776884]
[1729074687423,16.2926,156.01,155.92,43.776884]
[1729074689342,16.2926,156.01,155.95,23.776884]
[1729074689629,30.0,155.96,155.95,23.776884]
[1729074690032,16.2926,156.01,155.96,20.0]
[1729074693222,6.1363,156.03,155.97,23.776884]
[1729074693542,15.1705,156.05,155.97,23.776884]
[1729074693917,15.1705,156.05,155.98,20.0]
[1729074694251,15.1705,156.05,155.97,23.776884]
[1729074694434,15.1705,156.05,155.97,20.0]
[1729074694731,15.1705,156.05,155.99,20.0]
[1729074694939,15.1705,156.05,156.0,23.776884]
[1729074696938,15.1705,156.05,155.95,35.09921412]
[1729074697140,15.1705,156.05,155.97,20.0]
[1729074697320,15.1705,156.05,155.98,23.776884]
[1729074697726,21.5787,156.05,155.96,20.0]
[1729074698116,21.5787,156.05,155.98,20.0]
[1729074701043,15.1705,156.05,155.98,20.0]
[1729074701337,15.1705,156.05,155.99,23.776884]
[1729074701718,15.1705,156.05,156.0,20.0]
[1729074701912,6.2819,156.07,156.0,20.0]
[1729074703139,6.2819,156.07,156.01,23.776884]
[1729074703645,12.6896,156.07,155.99,23.776884]
[1729074703822,12.6896,156.07,156.0,20.0]
[1729074704143,6.4078,156.06,155.99,23.776884]
[1729074704515,6.2819,156.07,155.99,23.776884]
[1729074704740,12.6893,156.07,155.99,23.776884]
[1729074706922,6.2819,156.07,155.99,23.776884]
[1729074709852,6.2819,156.07,155.98,23.776884]
[1729074710153,6.2819,156.07,156.0,23.776884]
[1729074711222,15.0296,156.09,156.0,23.776884]
[1729074715362,15.0296,156.09,156.02,23.776884]
[1729074716348,15.0296,156.09,156.01,20.0]
[1729074716349,15.0296,156.09,156.01,23.776884]
[1729074716556,21.4362,156.09,156.02,20.0]
[1729074720228,15.0296,156.09,155.99,20.0]
[1729074720425,6.4076,156.07,155.97,23.776884]
[1729074720628,15.0296,156.09,155.96,12.63757646]
[1729074720629,6.4081,156.06,155.96,12.63757646]
[1729074721656,6.4081,156.06,155.97,20.0]
[1729074722744,70.0,156.08,155.97,20.0]
[1729074722745,6.4075,156.07,155.99,20.0]
[1729074722946,6.4078,156.06,155.99,20.0]
[1729074723860,15.872,156.05,155.96,23.776884]
[1729074724157,6.4094,156.03,155.93,12.63757646]
[1729074725336,6.4094,156.03,155.94,23.776884]
[1729074726043,15.872,156.05,155.95,20.0]
[1729074726243,15.872,156.05,155.96,23.776884]
[1729074726763,15.872,156.05,155.97,32.63757646]
[1729074726956,15.872,156.05,155.98,43.776884]
[1729074727650,15.872,156.05,155.99,12.63757646]
[1729074729279,15.872,156.05,156.0,23.776884]
[1729074729945,15.872,156.05,155.99,23.776884]
[1729074730257,6.5369,156.07,156.0,20.0]
[1729074730470,6.5369,156.07,156.01,23.776884]
[1729074734460,6.5369,156.07,155.98,20.0]
[1729074734647,6.5369,156.07,155.99,23.776884]
[1729074734842,6.5369,156.07,156.0,20.0]
[1729074735266,6.5369,156.07,155.99,23.776884]
[1729074735560,6.5369,156.07,156.0,20.0]
[1729074735866,12.9444,156.07,155.99,20.0]
[1729074736167,6.5369,156.07,156.0,23.776884]
[1729074736460,6.407,156.08,156.0,23.776884]
[1729074736646,15.6371,156.09,156.0,23.776884]
[1729074736846,22.0437,156.09,156.0,23.776884]
[1729074737754,22.0437,156.09,156.01,20.0]
[1729074738752,6.4056,156.12,156.02,23.776884]
[1729074740659,70.0,156.12,156.02,23.776884]
[1729074740969,6.4064,156.1,156.02,23.776884]
[1729074742069,6.4066,156.09,156.02,23.776884]
[1729074746951,6.4058,156.11,156.02,23.776884]
[1729074747277,6.4062,156.1,156.03,20.0]
[1729074751356,6.4058,156.11,156.04,23.776884]
[1729074751950,6.4056,156.12,156.04,23.776884]
[1729074752164,7.0335554,156.13,156.06,23.776884]